[Event "Titled Tuesday Blitz May 16 Late 2023"]
[White "Pasti, Aron"]
[Black "Araujo, Everson De Moura"]
[WhiteFideId "785857"]
[BlackFideId "22737197"]
[WhiteElo "2173"]
[BlackElo "2035"]
[Result "1/2-1/2"]
[Round "02"]
[TimeControl "180+2"]
[Date "2023.05.16"]
[WhiteClock "0:00:05"]
[BlackClock "0:00:12"]

1. e4 {[%clk 0:02:58]}  e6 {[%clk 0:02:59]} 2. d4 {[%clk 0:02:58]}  d5 {[%clk 0:02:59]} 3. Nc3 {[%clk 0:02:54]}  Nf6 {[%clk 0:02:58]} 4. e5 {[%clk 0:02:53]}  Nfd7 {[%clk 0:02:59]} 5. Nce2 {[%clk 0:02:54]}  c5 {[%clk 0:03:00]} 6. c3 {[%clk 0:02:54]}  Nc6 {[%clk 0:02:59]} 7. f4 {[%clk 0:02:54]}  f6 {[%clk 0:02:56]} 8. Nf3 {[%clk 0:02:54]}  Be7 {[%clk 0:02:54]} 9. g3 {[%clk 0:02:54]}  Kf8 {[%clk 0:02:54]} 10. Bh3 {[%clk 0:02:51]}  Nb6 {[%clk 0:02:45]} 11. O-O {[%clk 0:02:51]}  c4 {[%clk 0:02:43]} 12. exf6 {[%clk 0:02:39]}  Bxf6 {[%clk 0:02:41]} 13. Ne5 {[%clk 0:02:25]}  g6 {[%clk 0:02:30]} 14. g4 {[%clk 0:02:17]}  Kg7 {[%clk 0:02:27]} 15. Ng3 {[%clk 0:02:02]}  Nd7 {[%clk 0:02:16]} 16. Qe2 {[%clk 0:01:58]}  Ndxe5 {[%clk 0:02:13]} 17. dxe5 {[%clk 0:01:56]}  Be7 {[%clk 0:02:12]} 18. f5 {[%clk 0:01:57]}  Bc5+ {[%clk 0:02:08]} 19. Kh1 {[%clk 0:01:57]}  Rf8 {[%clk 0:01:50]} 20. Qd2 {[%clk 0:01:55]}  exf5 {[%clk 0:01:38]} 21. gxf5 {[%clk 0:01:49]}  Nxe5 {[%clk 0:01:37]} 22. Qh6+ {[%clk 0:01:44]}  Kg8 {[%clk 0:01:36]} 23. Bg5 {[%clk 0:01:44]}  Nf7 {[%clk 0:01:29]} 24. Bxd8 {[%clk 0:01:38]}  Nxh6 {[%clk 0:01:29]} 25. Bg5 {[%clk 0:01:37]}  Nxf5 {[%clk 0:01:22]} 26. Nxf5 {[%clk 0:01:37]}  Bxf5 {[%clk 0:01:21]} 27. Bxf5 {[%clk 0:01:35]}  Rxf5 {[%clk 0:01:21]} 28. Rxf5 {[%clk 0:01:34]}  gxf5 {[%clk 0:01:22]} 29. Rd1 {[%clk 0:01:33]}  Re8 {[%clk 0:01:07]} 30. Rxd5 {[%clk 0:01:28]}  Re1+ {[%clk 0:01:07]} 31. Kg2 {[%clk 0:01:29]}  Rg1+ {[%clk 0:00:52]} 32. Kf3 {[%clk 0:01:29]}  b6 {[%clk 0:00:49]} 33. Rxf5 {[%clk 0:01:25]}  Rf1+ {[%clk 0:00:44]} 34. Ke4 {[%clk 0:01:25]}  Rb1 {[%clk 0:00:35]} 35. Bh6 {[%clk 0:01:01]}  Rxb2 {[%clk 0:00:32]} 36. h4 {[%clk 0:00:59]}  Rxa2 {[%clk 0:00:25]} 37. h5 {[%clk 0:00:59]}  Rg2 {[%clk 0:00:24]} 38. Kd5 {[%clk 0:00:56]}  Rg3 {[%clk 0:00:19]} 39. Kxc4 {[%clk 0:00:55]}  a5 {[%clk 0:00:18]} 40. Kb5 {[%clk 0:00:40]}  Rg4 {[%clk 0:00:18]} 41. c4 {[%clk 0:00:40]}  Rg1 {[%clk 0:00:15]} 42. Ka4 {[%clk 0:00:26]}  Ra1+ {[%clk 0:00:14]} 43. Kb5 {[%clk 0:00:26]}  Rb1+ {[%clk 0:00:15]} 44. Kc6 {[%clk 0:00:26]}  a4 {[%clk 0:00:15]} 45. Rg5+ {[%clk 0:00:27]}  Kf7 {[%clk 0:00:16]} 46. Rg7+ {[%clk 0:00:27]}  Kf6 {[%clk 0:00:17]} 47. Rxh7 {[%clk 0:00:22]}  a3 {[%clk 0:00:17]} 48. Bg7+ {[%clk 0:00:18]}  Kf5 {[%clk 0:00:17]} 49. Rh8 {[%clk 0:00:16]}  a2 {[%clk 0:00:17]} 50. Ra8 {[%clk 0:00:17]}  Ke4 {[%clk 0:00:15]} 51. Rxa2 {[%clk 0:00:15]}  Rh1 {[%clk 0:00:15]} 52. h6 {[%clk 0:00:16]}  Bd4 {[%clk 0:00:15]} 53. Bxd4 {[%clk 0:00:03]}  Rxh6+ {[%clk 0:00:15]} 54. Kb5 {[%clk 0:00:03]}  Kxd4 {[%clk 0:00:15]} 55. Rd2+ {[%clk 0:00:03]}  Kc3 {[%clk 0:00:16]} 56. Rf2 {[%clk 0:00:02]}  Rh5+ {[%clk 0:00:14]} 57. Kxb6 {[%clk 0:00:03]}  Kxc4 {[%clk 0:00:15]} 58. Rf4+ {[%clk 0:00:02]}  Kd3 {[%clk 0:00:13]} 59. Rf3+ {[%clk 0:00:03]}  Ke2 {[%clk 0:00:14]} 60. Rb3 {[%clk 0:00:04]}  Kd2 {[%clk 0:00:14]} 61. Rb5 {[%clk 0:00:04]}  Rxb5+ {[%clk 0:00:12]} 62. Kxb5 {[%clk 0:00:05]} 1/2-1/2


[Site "https://www.chess.com"]

[Event "Titled Tuesday Blitz May 16 Late 2023"]
[White "Chemin, Justo Reinaldo"]
[Black "marik_spb"]
[WhiteFideId "2101580"]
[WhiteElo "1940"]
[BlackElo "2444"]
[Result "0-1"]
[Round "02"]
[TimeControl "180+2"]
[Date "2023.05.16"]
[WhiteClock "0:00:29"]
[BlackClock "0:00:16"]

1. d4 {[%clk 0:03:00]}  Nf6 {[%clk 0:02:52]} 2. Nf3 {[%clk 0:03:00]}  d5 {[%clk 0:02:49]} 3. e3 {[%clk 0:03:01]}  c5 {[%clk 0:02:47]} 4. b3 {[%clk 0:03:01]}  Nc6 {[%clk 0:02:47]} 5. Bb2 {[%clk 0:03:00]}  Bf5 {[%clk 0:02:47]} 6. a3 {[%clk 0:02:57]}  e6 {[%clk 0:02:44]} 7. Nbd2 {[%clk 0:02:56]}  Rc8 {[%clk 0:02:42]} 8. Bd3 {[%clk 0:02:45]}  Bxd3 {[%clk 0:02:36]} 9. cxd3 {[%clk 0:02:46]}  cxd4 {[%clk 0:02:36]} 10. Nxd4 {[%clk 0:02:32]}  Nxd4 {[%clk 0:02:32]} 11. Bxd4 {[%clk 0:02:31]}  Bc5 {[%clk 0:02:32]} 12. Bxc5 {[%clk 0:02:26]}  Rxc5 {[%clk 0:02:32]} 13. O-O {[%clk 0:02:19]}  O-O {[%clk 0:02:32]} 14. Nf3 {[%clk 0:02:17]}  Qb6 {[%clk 0:02:25]} 15. b4 {[%clk 0:02:15]}  Rc3 {[%clk 0:02:25]} 16. Qd2 {[%clk 0:02:10]}  Rfc8 {[%clk 0:02:25]} 17. Rfc1 {[%clk 0:02:08]}  Qc7 {[%clk 0:02:25]} 18. Rxc3 {[%clk 0:02:06]}  Qxc3 {[%clk 0:02:26]} 19. Qxc3 {[%clk 0:02:05]}  Rxc3 {[%clk 0:02:26]} 20. d4 {[%clk 0:02:04]}  Ne4 {[%clk 0:02:23]} 21. Ne1 {[%clk 0:01:57]}  g5 {[%clk 0:02:06]} 22. h3 {[%clk 0:01:50]}  Kg7 {[%clk 0:02:02]} 23. a4 {[%clk 0:01:42]}  h5 {[%clk 0:01:33]} 24. b5 {[%clk 0:01:37]}  g4 {[%clk 0:01:32]} 25. hxg4 {[%clk 0:01:36]}  hxg4 {[%clk 0:01:32]} 26. f3 {[%clk 0:01:27]}  Nd2 {[%clk 0:01:19]} 27. Kf2 {[%clk 0:01:22]}  Nc4 {[%clk 0:01:13]} 28. e4 {[%clk 0:01:11]}  dxe4 {[%clk 0:01:07]} 29. fxe4 {[%clk 0:01:11]}  g3+ {[%clk 0:01:02]} 30. Kf1 {[%clk 0:01:04]}  Nd2+ {[%clk 0:01:01]} 31. Ke2 {[%clk 0:01:01]}  Nxe4 {[%clk 0:01:01]} 32. Nf3 {[%clk 0:00:59]}  f5 {[%clk 0:00:55]} 33. Ra2 {[%clk 0:00:53]}  Kf6 {[%clk 0:00:49]} 34. Ne5 {[%clk 0:00:50]}  f4 {[%clk 0:00:35]} 35. Nd3 {[%clk 0:00:44]}  Kf5 {[%clk 0:00:32]} 36. Ne5 {[%clk 0:00:36]}  Re3+ {[%clk 0:00:24]} 37. Kf1 {[%clk 0:00:34]}  Nc3 {[%clk 0:00:22]} 38. Ra3 {[%clk 0:00:30]}  Ke4 {[%clk 0:00:19]} 39. Nc4 {[%clk 0:00:28]}  Rd3 {[%clk 0:00:16]} 40. Nd6+ {[%clk 0:00:28]}  Kxd4 {[%clk 0:00:16]} 41. Nxb7 {[%clk 0:00:29]}  Rd1# {[%clk 0:00:16]} 0-1


[Site "https://www.chess.com"]

[Event "Titled Tuesday Blitz May 16 Late 2023"]
[White "Rottenwohrer Suarez, Juan"]
[Black "Tarnowska, Aleksandra"]
[WhiteFideId "32068182"]
[BlackFideId "1180967"]
[WhiteElo "2174"]
[BlackElo "1776"]
[Result "1-0"]
[Round "02"]
[TimeControl "180+2"]
[Date "2023.05.16"]
[WhiteClock "0:01:18"]
[BlackClock "0:00:27"]

1. Nf3 {[%clk 0:02:58]}  d5 {[%clk 0:03:00]} 2. g3 {[%clk 0:02:58]}  Nf6 {[%clk 0:03:00]} 3. Bg2 {[%clk 0:02:59]}  c5 {[%clk 0:02:58]} 4. O-O {[%clk 0:02:58]}  Nc6 {[%clk 0:02:58]} 5. c4 {[%clk 0:02:55]}  e5 {[%clk 0:02:55]} 6. cxd5 {[%clk 0:02:53]}  Nxd5 {[%clk 0:02:55]} 7. Nc3 {[%clk 0:02:53]}  Nf6 {[%clk 0:02:34]} 8. d3 {[%clk 0:02:21]}  Be7 {[%clk 0:02:31]} 9. Bg5 {[%clk 0:02:14]}  O-O {[%clk 0:02:29]} 10. Rc1 {[%clk 0:02:15]}  Bg4 {[%clk 0:01:46]} 11. a3 {[%clk 0:02:10]}  Rc8 {[%clk 0:01:37]} 12. Qa4 {[%clk 0:02:07]}  a6 {[%clk 0:01:36]} 13. Bxf6 {[%clk 0:02:07]}  Bxf3 {[%clk 0:01:10]} 14. Bxe7 {[%clk 0:02:05]}  Qxe7 {[%clk 0:01:08]} 15. Bxf3 {[%clk 0:02:01]}  Nd4 {[%clk 0:01:08]} 16. Bg2 {[%clk 0:01:44]}  b5 {[%clk 0:01:01]} 17. Qd1 {[%clk 0:01:34]}  b4 {[%clk 0:01:01]} 18. Nd5 {[%clk 0:01:30]}  Qg5 {[%clk 0:00:38]} 19. e3 {[%clk 0:01:26]}  Nf5 {[%clk 0:00:34]} 20. h4 {[%clk 0:01:22]}  Qg6 {[%clk 0:00:31]} 21. e4 {[%clk 0:01:18]}  Nd4 {[%clk 0:00:27]} 22. Ne7+ {[%clk 0:01:18]} 1-0


[Site "https://www.chess.com"]

[Event "Titled Tuesday Blitz May 16 Late 2023"]
[White "Sailer, Mike"]
[Black "Wizard_of_Odds"]
[WhiteFideId "2012901"]
[WhiteElo "2109"]
[BlackElo "2440"]
[Result "0-1"]
[Round "02"]
[TimeControl "180+2"]
[Date "2023.05.16"]
[WhiteClock "0:00:00"]
[BlackClock "0:00:03"]

1. d4 {[%clk 0:02:59]}  d5 {[%clk 0:02:58]} 2. Bg5 {[%clk 0:02:59]}  f6 {[%clk 0:02:56]} 3. Bh4 {[%clk 0:02:54]}  c5 {[%clk 0:02:56]} 4. e3 {[%clk 0:02:48]}  Nc6 {[%clk 0:02:54]} 5. Nc3 {[%clk 0:02:41]}  e6 {[%clk 0:02:50]} 6. Nf3 {[%clk 0:02:35]}  Nh6 {[%clk 0:02:47]} 7. Bb5 {[%clk 0:02:29]}  Bd7 {[%clk 0:02:45]} 8. a3 {[%clk 0:02:21]}  Nf5 {[%clk 0:02:42]} 9. Bg3 {[%clk 0:02:21]}  cxd4 {[%clk 0:02:38]} 10. exd4 {[%clk 0:02:14]}  Qb6 {[%clk 0:02:33]} 11. O-O {[%clk 0:01:52]}  Nfxd4 {[%clk 0:02:31]} 12. Nxd4 {[%clk 0:01:52]}  Nxd4 {[%clk 0:02:27]} 13. Bxd7+ {[%clk 0:01:51]}  Kxd7 {[%clk 0:02:27]} 14. Na4 {[%clk 0:01:32]}  Qc6 {[%clk 0:01:56]} 15. Qxd4 {[%clk 0:01:26]}  b5 {[%clk 0:01:52]} 16. Nc3 {[%clk 0:01:21]}  Bc5 {[%clk 0:01:50]} 17. Qg4 {[%clk 0:01:13]}  g6 {[%clk 0:01:36]} 18. Rfe1 {[%clk 0:01:11]}  Rae8 {[%clk 0:01:32]} 19. Rad1 {[%clk 0:01:10]}  f5 {[%clk 0:01:27]} 20. Qe2 {[%clk 0:00:56]}  a6 {[%clk 0:01:27]} 21. Be5 {[%clk 0:00:56]}  Rhf8 {[%clk 0:01:26]} 22. Na2 {[%clk 0:00:46]}  Qb6 {[%clk 0:01:06]} 23. Nb4 {[%clk 0:00:45]}  Kc8 {[%clk 0:00:54]} 24. Nd3 {[%clk 0:00:42]}  Be7 {[%clk 0:00:46]} 25. Qe3 {[%clk 0:00:42]}  Qxe3 {[%clk 0:00:33]} 26. Rxe3 {[%clk 0:00:37]}  Kd7 {[%clk 0:00:31]} 27. c3 {[%clk 0:00:25]}  g5 {[%clk 0:00:27]} 28. f3 {[%clk 0:00:17]}  Rg8 {[%clk 0:00:26]} 29. Kf1 {[%clk 0:00:16]}  Rg6 {[%clk 0:00:24]} 30. Bd4 {[%clk 0:00:15]}  Bd6 {[%clk 0:00:22]} 31. Ne5+ {[%clk 0:00:15]}  Bxe5 {[%clk 0:00:22]} 32. Bxe5 {[%clk 0:00:14]}  Rh6 {[%clk 0:00:21]} 33. Kg1 {[%clk 0:00:09]}  Rg6 {[%clk 0:00:20]} 34. a4 {[%clk 0:00:10]}  Kc6 {[%clk 0:00:16]} 35. axb5+ {[%clk 0:00:10]}  Kxb5 {[%clk 0:00:15]} 36. Rd4 {[%clk 0:00:08]}  Rc8 {[%clk 0:00:13]} 37. Rb4+ {[%clk 0:00:09]}  Kc6 {[%clk 0:00:11]} 38. Re1 {[%clk 0:00:09]}  Rgg8 {[%clk 0:00:09]} 39. Ra1 {[%clk 0:00:09]}  Ra8 {[%clk 0:00:09]} 40. Ra5 {[%clk 0:00:09]}  Rgc8 {[%clk 0:00:07]} 41. Bd4 {[%clk 0:00:08]}  Kd7 {[%clk 0:00:06]} 42. Rc5 {[%clk 0:00:07]}  Rxc5 {[%clk 0:00:06]} 43. Bxc5 {[%clk 0:00:07]}  Kc6 {[%clk 0:00:06]} 44. Bd4 {[%clk 0:00:08]}  Kc7 {[%clk 0:00:05]} 45. Be5+ {[%clk 0:00:08]}  Kc6 {[%clk 0:00:04]} 46. Kf2 {[%clk 0:00:09]}  h5 {[%clk 0:00:04]} 47. Ke3 {[%clk 0:00:09]}  a5 {[%clk 0:00:05]} 48. Rb3 {[%clk 0:00:08]}  Ra7 {[%clk 0:00:04]} 49. Kd4 {[%clk 0:00:08]}  Rf7 {[%clk 0:00:03]} 50. Rb8 {[%clk 0:00:07]}  f4 {[%clk 0:00:02]} 51. Rh8 {[%clk 0:00:06]}  g4 {[%clk 0:00:02]} 52. Rxh5 {[%clk 0:00:05]}  gxf3 {[%clk 0:00:03]} 53. gxf3 {[%clk 0:00:05]}  Rf8 {[%clk 0:00:04]} 54. Rh4 {[%clk 0:00:05]}  Rg8 {[%clk 0:00:04]} 55. Rg4 {[%clk 0:00:04]}  Ra8 {[%clk 0:00:02]} 56. Rxf4 {[%clk 0:00:03]}  Ra7 {[%clk 0:00:03]} 57. Rf8 {[%clk 0:00:03]}  Rh7 {[%clk 0:00:03]} 58. Rc8+ {[%clk 0:00:02]}  Kb7 {[%clk 0:00:03]} 59. Re8 {[%clk 0:00:00]}  Rf7 {[%clk 0:00:03]} 0-1


[Site "https://www.chess.com"]

[Event "Titled Tuesday Blitz May 16 Late 2023"]
[White "KSho99"]
[Black "Prydun, Andriy"]
[BlackFideId "14145898"]
[WhiteElo "2156"]
[BlackElo "2164"]
[Result "0-1"]
[Round "02"]
[TimeControl "180+2"]
[Date "2023.05.16"]
[WhiteClock "0:00:00"]
[BlackClock "0:00:02"]

1. Nf3 {[%clk 0:03:00]}  d5 {[%clk 0:02:57]} 2. e3 {[%clk 0:03:00]}  Nf6 {[%clk 0:02:55]} 3. b3 {[%clk 0:02:58]}  e6 {[%clk 0:02:54]} 4. Bb2 {[%clk 0:02:58]}  Be7 {[%clk 0:02:54]} 5. d4 {[%clk 0:02:58]}  O-O {[%clk 0:02:54]} 6. Bd3 {[%clk 0:02:58]}  Nfd7 {[%clk 0:02:42]} 7. O-O {[%clk 0:02:51]}  Bf6 {[%clk 0:02:41]} 8. c4 {[%clk 0:02:39]}  dxc4 {[%clk 0:02:36]} 9. bxc4 {[%clk 0:02:35]}  c5 {[%clk 0:02:33]} 10. Qc2 {[%clk 0:02:19]}  h6 {[%clk 0:02:30]} 11. Nc3 {[%clk 0:02:05]}  cxd4 {[%clk 0:02:25]} 12. exd4 {[%clk 0:02:01]}  Nc6 {[%clk 0:02:26]} 13. Ne4 {[%clk 0:01:57]}  Nb4 {[%clk 0:02:22]} 14. Nxf6+ {[%clk 0:01:56]}  Nxf6 {[%clk 0:02:21]} 15. Qc3 {[%clk 0:01:51]}  Nxd3 {[%clk 0:02:20]} 16. Qxd3 {[%clk 0:01:52]}  b6 {[%clk 0:02:13]} 17. Rad1 {[%clk 0:01:47]}  Bb7 {[%clk 0:02:13]} 18. Ne5 {[%clk 0:01:26]}  Rc8 {[%clk 0:01:25]} 19. Rfe1 {[%clk 0:01:26]}  Rc7 {[%clk 0:01:21]} 20. Qg3 {[%clk 0:01:24]}  Qc8 {[%clk 0:01:04]} 21. d5 {[%clk 0:00:52]}  exd5 {[%clk 0:00:46]} 22. Nd7 {[%clk 0:00:51]}  Nh5 {[%clk 0:00:31]} 23. Nf6+ {[%clk 0:00:34]}  Nxf6 {[%clk 0:00:22]} 24. Bxf6 {[%clk 0:00:34]}  g6 {[%clk 0:00:22]} 25. Qf4 {[%clk 0:00:18]}  Kh7 {[%clk 0:00:18]} 26. Re3 {[%clk 0:00:13]}  Rxc4 {[%clk 0:00:17]} 27. Bd4 {[%clk 0:00:07]}  Qf5 {[%clk 0:00:15]} 28. Qh4 {[%clk 0:00:02]}  Qc2 {[%clk 0:00:08]} 29. Red3 {[%clk 0:00:01]}  Re8 {[%clk 0:00:04]} 30. h3 {[%clk 0:00:00]}  Rc6 {[%clk 0:00:02]} 0-1


[Site "https://www.chess.com"]

[Event "Titled Tuesday Blitz May 16 Late 2023"]
[White "Martin Barcelo, Carles"]
[Black "Florianovitz, Derlei Alex"]
[WhiteFideId "24561444"]
[BlackFideId "2114178"]
[WhiteElo "2089"]
[BlackElo "1953"]
[Result "0-1"]
[Round "02"]
[TimeControl "180+2"]
[Date "2023.05.16"]
[WhiteClock "0:00:00"]
[BlackClock "0:00:04"]

1. Nf3 {[%clk 0:02:56]}  c5 {[%clk 0:02:58]} 2. g3 {[%clk 0:02:53]}  Nc6 {[%clk 0:02:58]} 3. Bg2 {[%clk 0:02:52]}  g6 {[%clk 0:02:58]} 4. O-O {[%clk 0:02:52]}  Bg7 {[%clk 0:02:58]} 5. c3 {[%clk 0:02:48]}  e5 {[%clk 0:02:58]} 6. e4 {[%clk 0:02:47]}  Nge7 {[%clk 0:02:57]} 7. Na3 {[%clk 0:02:31]}  O-O {[%clk 0:02:54]} 8. Nc4 {[%clk 0:02:32]}  d6 {[%clk 0:02:55]} 9. d3 {[%clk 0:02:30]}  b5 {[%clk 0:02:54]} 10. Ne3 {[%clk 0:02:30]}  h6 {[%clk 0:02:50]} 11. Nd5 {[%clk 0:02:29]}  Be6 {[%clk 0:02:49]} 12. Ne1 {[%clk 0:02:26]}  Rb8 {[%clk 0:02:37]} 13. Nc2 {[%clk 0:02:24]}  f5 {[%clk 0:02:30]} 14. Nce3 {[%clk 0:02:11]}  f4 {[%clk 0:02:27]} 15. Nxe7+ {[%clk 0:02:11]}  Nxe7 {[%clk 0:02:24]} 16. Nd5 {[%clk 0:02:12]}  Nxd5 {[%clk 0:02:18]} 17. exd5 {[%clk 0:02:12]}  Bd7 {[%clk 0:02:08]} 18. Be4 {[%clk 0:02:12]}  Bh3 {[%clk 0:02:05]} 19. Re1 {[%clk 0:02:10]}  Qf6 {[%clk 0:02:01]} 20. Qe2 {[%clk 0:02:09]}  g5 {[%clk 0:01:55]} 21. f3 {[%clk 0:01:56]}  fxg3 {[%clk 0:01:48]} 22. hxg3 {[%clk 0:01:57]}  Bf5 {[%clk 0:01:47]} 23. Bd2 {[%clk 0:01:47]}  a5 {[%clk 0:01:45]} 24. Kg2 {[%clk 0:01:46]}  b4 {[%clk 0:01:43]} 25. c4 {[%clk 0:01:43]}  Rb7 {[%clk 0:01:41]} 26. Rh1 {[%clk 0:01:36]}  Rbf7 {[%clk 0:01:38]} 27. Raf1 {[%clk 0:01:35]}  Qd8 {[%clk 0:01:28]} 28. Bc1 {[%clk 0:01:33]}  a4 {[%clk 0:01:26]} 29. Qd1 {[%clk 0:01:33]}  Qa5 {[%clk 0:01:20]} 30. Qe1 {[%clk 0:01:28]}  Bxe4 {[%clk 0:01:18]} 31. fxe4 {[%clk 0:01:21]}  Qc7 {[%clk 0:01:10]} 32. g4 {[%clk 0:01:01]}  Rxf1 {[%clk 0:01:02]} 33. Rxf1 {[%clk 0:01:00]}  Rxf1 {[%clk 0:01:03]} 34. Qxf1 {[%clk 0:00:59]}  Qf7 {[%clk 0:01:03]} 35. Qd1 {[%clk 0:00:55]}  Qd7 {[%clk 0:01:00]} 36. Qf3 {[%clk 0:00:53]}  Kh7 {[%clk 0:00:51]} 37. Kg3 {[%clk 0:00:39]}  Kg6 {[%clk 0:00:50]} 38. Qd1 {[%clk 0:00:33]}  Bf6 {[%clk 0:00:41]} 39. Be3 {[%clk 0:00:33]}  Bd8 {[%clk 0:00:35]} 40. Kg2 {[%clk 0:00:30]}  Ba5 {[%clk 0:00:32]} 41. Qf3 {[%clk 0:00:31]}  Qf7 {[%clk 0:00:29]} 42. Qd1 {[%clk 0:00:28]}  Qd7 {[%clk 0:00:28]} 43. b3 {[%clk 0:00:23]}  a3 {[%clk 0:00:27]} 44. Qf3 {[%clk 0:00:19]}  Qf7 {[%clk 0:00:27]} 45. Qh3 {[%clk 0:00:19]}  Bd8 {[%clk 0:00:22]} 46. Qh5+ {[%clk 0:00:16]}  Kg7 {[%clk 0:00:22]} 47. Qh1 {[%clk 0:00:17]}  Be7 {[%clk 0:00:22]} 48. Qe1 {[%clk 0:00:17]}  Bd8 {[%clk 0:00:20]} 49. Qe2 {[%clk 0:00:17]}  Bb6 {[%clk 0:00:20]} 50. Bc1 {[%clk 0:00:18]}  Qf6 {[%clk 0:00:19]} 51. Bd2 {[%clk 0:00:18]}  Qf7 {[%clk 0:00:19]} 52. Be1 {[%clk 0:00:18]}  Qf6 {[%clk 0:00:20]} 53. Bg3 {[%clk 0:00:19]}  Qf7 {[%clk 0:00:19]} 54. Qe1 {[%clk 0:00:19]}  Qf6 {[%clk 0:00:19]} 55. Bh2 {[%clk 0:00:19]}  Bc7 {[%clk 0:00:19]} 56. Qe2 {[%clk 0:00:17]}  Qf7 {[%clk 0:00:19]} 57. Bg3 {[%clk 0:00:16]}  Qf6 {[%clk 0:00:19]} 58. Qd1 {[%clk 0:00:16]}  Qf7 {[%clk 0:00:20]} 59. Qe1 {[%clk 0:00:15]}  Qf6 {[%clk 0:00:20]} 60. Qe3 {[%clk 0:00:16]}  Qf7 {[%clk 0:00:20]} 61. Qe2 {[%clk 0:00:15]}  Qf6 {[%clk 0:00:20]} 62. Qe1 {[%clk 0:00:16]}  Qf7 {[%clk 0:00:21]} 63. d4 {[%clk 0:00:14]}  cxd4 {[%clk 0:00:16]} 64. Qxb4 {[%clk 0:00:13]}  Qd7 {[%clk 0:00:08]} 65. Kf3 {[%clk 0:00:09]}  Qf7+ {[%clk 0:00:07]} 66. Kg2 {[%clk 0:00:09]}  Qd7 {[%clk 0:00:05]} 67. Qb7 {[%clk 0:00:09]}  Kg6 {[%clk 0:00:04]} 68. c5 {[%clk 0:00:08]}  dxc5 {[%clk 0:00:03]} 69. Bxe5 {[%clk 0:00:08]}  Qxg4+ {[%clk 0:00:03]} 70. Kf1 {[%clk 0:00:04]}  Bxe5 {[%clk 0:00:04]} 71. Qc6+ {[%clk 0:00:04]}  Kh5 {[%clk 0:00:04]} 72. Qe8+ {[%clk 0:00:04]}  Kh4 {[%clk 0:00:03]} 73. d6 {[%clk 0:00:02]}  Qf4+ {[%clk 0:00:03]} 74. Ke2 {[%clk 0:00:02]}  Bxd6 {[%clk 0:00:04]} 75. Qg6 {[%clk 0:00:01]}  h5 {[%clk 0:00:05]} 76. Qe6 {[%clk 0:00:01]}  Qe3+ {[%clk 0:00:04]} 77. Kd1 {[%clk 0:00:00]}  Bf4 {[%clk 0:00:04]} 0-1


[Site "https://www.chess.com"]

[Event "Titled Tuesday Blitz May 16 Late 2023"]
[White "Ziatdinov, Raset"]
[Black "Lopez Perdomo, Juan David"]
[WhiteFideId "2015323"]
[BlackFideId "4405137"]
[WhiteElo "2220"]
[BlackElo "1965"]
[Result "0-1"]
[Round "02"]
[TimeControl "180+2"]
[Date "2023.05.16"]
[WhiteClock "0:00:13"]
[BlackClock "0:00:19"]

1. e4 {[%clk 0:03:00]}  e6 {[%clk 0:02:57]} 2. d4 {[%clk 0:03:00]}  d5 {[%clk 0:02:55]} 3. Nc3 {[%clk 0:03:01]}  Bb4 {[%clk 0:02:55]} 4. exd5 {[%clk 0:03:01]}  exd5 {[%clk 0:02:55]} 5. Bd3 {[%clk 0:03:02]}  Nf6 {[%clk 0:02:55]} 6. Ne2 {[%clk 0:03:01]}  O-O {[%clk 0:02:55]} 7. O-O {[%clk 0:03:02]}  Bg4 {[%clk 0:02:55]} 8. f3 {[%clk 0:03:02]}  Bh5 {[%clk 0:02:55]} 9. Nf4 {[%clk 0:03:03]}  Bg6 {[%clk 0:02:54]} 10. Nxg6 {[%clk 0:03:01]}  hxg6 {[%clk 0:02:54]} 11. Bg5 {[%clk 0:03:01]}  c6 {[%clk 0:02:53]} 12. a3 {[%clk 0:02:56]}  Bd6 {[%clk 0:02:52]} 13. Re1 {[%clk 0:02:55]}  Nbd7 {[%clk 0:02:52]} 14. Qd2 {[%clk 0:02:53]}  Qc7 {[%clk 0:02:53]} 15. g3 {[%clk 0:02:43]}  Rfe8 {[%clk 0:02:41]} 16. Kg2 {[%clk 0:02:42]}  Nh7 {[%clk 0:02:40]} 17. Bh4 {[%clk 0:02:36]}  Ndf6 {[%clk 0:02:26]} 18. f4 {[%clk 0:02:17]}  Qd7 {[%clk 0:01:48]} 19. Rxe8+ {[%clk 0:02:05]}  Rxe8 {[%clk 0:01:47]} 20. Re1 {[%clk 0:02:06]}  Ng4 {[%clk 0:01:42]} 21. h3 {[%clk 0:01:54]}  Ngf6 {[%clk 0:01:23]} 22. b4 {[%clk 0:01:25]}  a5 {[%clk 0:01:18]} 23. Na4 {[%clk 0:01:21]}  axb4 {[%clk 0:01:18]} 24. axb4 {[%clk 0:01:20]}  Ne4 {[%clk 0:01:08]} 25. Bxe4 {[%clk 0:01:11]}  dxe4 {[%clk 0:01:09]} 26. Nc5 {[%clk 0:01:11]}  Bxc5 {[%clk 0:01:08]} 27. bxc5 {[%clk 0:01:11]}  Qe6 {[%clk 0:00:52]} 28. Re3 {[%clk 0:01:05]}  f5 {[%clk 0:00:40]} 29. Qb4 {[%clk 0:00:58]}  Qd7 {[%clk 0:00:33]} 30. Kf2 {[%clk 0:00:47]}  Nf8 {[%clk 0:00:33]} 31. Rb3 {[%clk 0:00:45]}  Ne6 {[%clk 0:00:32]} 32. c3 {[%clk 0:00:44]}  Rb8 {[%clk 0:00:23]} 33. Qb6 {[%clk 0:00:40]}  Nc7 {[%clk 0:00:18]} 34. Qb4 {[%clk 0:00:27]}  Nd5 {[%clk 0:00:17]} 35. Qc4 {[%clk 0:00:28]}  e3+ {[%clk 0:00:17]} 36. Ke2 {[%clk 0:00:27]}  Qe6 {[%clk 0:00:18]} 37. Qd3 {[%clk 0:00:20]}  Nxf4+ {[%clk 0:00:18]} 38. gxf4 {[%clk 0:00:20]}  Qxb3 {[%clk 0:00:18]} 39. Qxe3 {[%clk 0:00:17]}  Qf7 {[%clk 0:00:18]} 40. Qe5 {[%clk 0:00:13]}  Re8 {[%clk 0:00:19]} 0-1


[Site "https://www.chess.com"]